[Event "Early-Titled-Tuesday-Blitz-April-02-2024"]
[Site "Chess.com"]
[Date "2024.04.02"]
[Round "9"]
[White "azikom"]
[Black "Mr_ruthless"]
[Result "1-0"]
[WhiteElo "2638"]
[BlackElo "2507"]
[TimeControl "180+1"]
[EndTime "9:45:41 PDT"]
[Termination "azikom won by resignation"]

1. d4 {[%clk 0:03:00]} 1... Nf6 {[%clk 0:02:55.2]} 2. Bf4 {[%clk 0:02:59.2]}
2... d5 {[%clk 0:02:49.8]} 3. e3 {[%clk 0:02:58.5]} 3... c5 {[%clk 0:02:49.8]}
4. c3 {[%clk 0:02:58.4]} 4... Nc6 {[%clk 0:02:49.6]} 5. Nd2 {[%clk 0:02:57]}
5... Bf5 {[%clk 0:02:46.6]} 6. Qb3 {[%clk 0:02:56.3]} 6... Qd7 {[%clk
0:02:42.7]} 7. Ngf3 {[%clk 0:02:55.4]} 7... e6 {[%clk 0:02:38.6]} 8. Nh4 {[%clk
0:02:51.3]} 8... c4 {[%clk 0:02:22]} 9. Qd1 {[%clk 0:02:50.2]} 9... b5 {[%clk
0:02:19.6]} 10. Nxf5 {[%clk 0:02:47.7]} 10... exf5 {[%clk 0:02:18.6]} 11. h3
{[%clk 0:02:47.6]} 11... Bd6 {[%clk 0:02:16.7]} 12. Bxd6 {[%clk 0:02:39.2]}
12... Qxd6 {[%clk 0:02:17.6]} 13. Qf3 {[%clk 0:02:39.2]} 13... g6 {[%clk
0:02:10.1]} 14. g4 {[%clk 0:02:38.3]} 14... fxg4 {[%clk 0:02:10.2]} 15. hxg4
{[%clk 0:02:37.8]} 15... Qe6 {[%clk 0:01:58.3]} 16. Bg2 {[%clk 0:02:36.2]} 16...
g5 {[%clk 0:01:35.9]} 17. Rh6 {[%clk 0:02:29.9]} 17... Ke7 {[%clk 0:01:33.6]}
18. O-O-O {[%clk 0:02:15.5]} 18... Rag8 {[%clk 0:01:27.3]} 19. Rxf6 {[%clk
0:02:13.3]} 19... Qxf6 {[%clk 0:01:24.3]} 20. Qxd5 {[%clk 0:02:13.8]} 20... Nd8
{[%clk 0:01:22.9]} 21. Qc5+ {[%clk 0:02:08.5]} 21... Ke8 {[%clk 0:01:12.7]} 22.
Qxb5+ {[%clk 0:02:07.8]} 22... Kf8 {[%clk 0:01:10.3]} 23. Ne4 {[%clk 0:02:07]}
23... Qb6 {[%clk 0:01:05.2]} 24. Qxc4 {[%clk 0:02:02]} 24... h5 {[%clk 0:01:03]}
25. gxh5 {[%clk 0:01:58.6]} 25... Rxh5 {[%clk 0:00:59.8]} 26. Qc8 {[%clk
0:01:47]} 26... Kg7 {[%clk 0:00:57.7]} 27. Qg4 {[%clk 0:01:30.7]} 27... Qg6
{[%clk 0:00:52.2]} 28. Ng3 {[%clk 0:01:30.4]} 28... Rh4 {[%clk 0:00:49.5]} 29.
Nf5+ {[%clk 0:01:29.9]} 29... Kf6 {[%clk 0:00:46.2]} 30. Nxh4 {[%clk 0:01:29]}
30... gxh4 {[%clk 0:00:46.4]} 31. Qxh4+ {[%clk 0:01:29.4]} 31... Qg5 {[%clk
0:00:43.8]} 32. Qxg5+ {[%clk 0:01:28.9]} 32... Rxg5 {[%clk 0:00:44.7]} 33. Be4
{[%clk 0:01:26.9]} 33... Ke7 {[%clk 0:00:41.6]} 34. Kd2 {[%clk 0:01:25.5]} 34...
Kd6 {[%clk 0:00:40.9]} 35. Ke2 {[%clk 0:01:25.2]} 35... f5 {[%clk 0:00:40.8]}
36. Bf3 {[%clk 0:01:25.1]} 36... Ne6 {[%clk 0:00:40.8]} 37. Rh1 {[%clk
0:01:25.6]} 37... f4 {[%clk 0:00:39.8]} 38. e4 {[%clk 0:01:24.4]} 38... Ra5
{[%clk 0:00:39.5]} 39. a3 {[%clk 0:01:24.1]} 39... Rb5 {[%clk 0:00:37]} 40. b4
{[%clk 0:01:23.2]} 40... a5 {[%clk 0:00:37.6]} 41. e5+ {[%clk 0:01:23.6]} 41...
Ke7 {[%clk 0:00:37.3]} 42. Rh7+ {[%clk 0:01:23.8]} 42... Kf8 {[%clk 0:00:37.9]}
43. Rh6 {[%clk 0:01:22]} 43... Ke7 {[%clk 0:00:34.4]} 44. Bg4 {[%clk 0:01:15.7]}
44... Ng5 {[%clk 0:00:34.9]} 45. Kd3 {[%clk 0:01:12.4]} 45... axb4 {[%clk
0:00:25.7]} 46. axb4 {[%clk 0:01:13.3]} 46... Rb8 {[%clk 0:00:26.3]} 47. Rg6
{[%clk 0:01:12.9]} 47... Nf7 {[%clk 0:00:25.3]} 48. Re6+ {[%clk 0:01:10.8]}
48... Kf8 {[%clk 0:00:24.6]} 49. Rf6 {[%clk 0:01:11]} 49... Kg7 {[%clk
0:00:17.2]} 50. Rxf4 {[%clk 0:01:10.3]} 50... Ra8 {[%clk 0:00:15.5]} 51. Be6
{[%clk 0:01:08]} 51... Ng5 {[%clk 0:00:14.9]} 52. Bd5 {[%clk 0:01:04.6]} 52...
Ra1 {[%clk 0:00:13.8]} 53. Rf5 {[%clk 0:00:58.7]} 53... Kg6 {[%clk 0:00:13.5]}
54. Rf6+ {[%clk 0:00:58.8]} 54... Kg7 {[%clk 0:00:12.1]} 55. f4 {[%clk
0:00:57.9]} 55... Nh3 {[%clk 0:00:10.4]} 56. Kc4 {[%clk 0:00:56.9]} 56... Nf2
{[%clk 0:00:09.3]} 57. f5 {[%clk 0:00:52.1]} 57... Ng4 {[%clk 0:00:08.8]} 58.
Rf7+ {[%clk 0:00:51.7]} 1-0

[Event "Early-Titled-Tuesday-Blitz-April-02-2024"]
[Site "Chess.com"]
[Date "2024.04.02"]
[Round "9"]
[White "Kirill_Klukin"]
[Black "Nf3c5"]
[Result "1-0"]
[WhiteElo "2811"]
[BlackElo "2607"]
[TimeControl "180+1"]
[EndTime "9:45:42 PDT"]
[Termination "Kirill_Klukin won on time"]

1. c4 {[%clk 0:03:00.5]} 1... Nf6 {[%clk 0:02:57.7]} 2. Nc3 {[%clk 0:03:00.4]}
2... g6 {[%clk 0:02:55.5]} 3. g3 {[%clk 0:03:00.5]} 3... Bg7 {[%clk 0:02:54.9]}
4. Bg2 {[%clk 0:03:01.2]} 4... O-O {[%clk 0:02:55.2]} 5. e3 {[%clk 0:03:01.8]}
5... e5 {[%clk 0:02:54.7]} 6. Nge2 {[%clk 0:03:01.8]} 6... c6 {[%clk 0:02:55.3]}
7. d4 {[%clk 0:03:01]} 7... d6 {[%clk 0:02:56]} 8. O-O {[%clk 0:03:00.7]} 8...
Qe7 {[%clk 0:02:56.7]} 9. b4 {[%clk 0:02:57.9]} 9... e4 {[%clk 0:02:56.5]} 10.
a4 {[%clk 0:02:57.1]} 10... h5 {[%clk 0:02:50.9]} 11. b5 {[%clk 0:02:45.7]}
11... Bg4 {[%clk 0:02:07.3]} 12. Qc2 {[%clk 0:02:33.3]} 12... Re8 {[%clk
0:02:03]} 13. Ba3 {[%clk 0:02:30.9]} 13... Nbd7 {[%clk 0:02:02]} 14. bxc6 {[%clk
0:02:28.7]} 14... bxc6 {[%clk 0:02:01.7]} 15. Rab1 {[%clk 0:02:29.3]} 15... Nf8
{[%clk 0:02:01.9]} 16. Rb2 {[%clk 0:02:20.9]} 16... Rad8 {[%clk 0:01:57.3]} 17.
Rfb1 {[%clk 0:02:20.6]} 17... Bc8 {[%clk 0:01:57.9]} 18. Rb8 {[%clk 0:02:15.4]}
18... N8h7 {[%clk 0:01:55.5]} 19. a5 {[%clk 0:01:53.2]} 19... Ng5 {[%clk
0:01:52.8]} 20. Qa4 {[%clk 0:01:38.7]} 20... Nf3+ {[%clk 0:01:25.7]} 21. Kh1
{[%clk 0:01:07.5]} 21... Ng4 {[%clk 0:01:20.9]} 22. Nd1 {[%clk 0:00:51.1]} 22...
Ngxh2 {[%clk 0:00:43.5]} 23. Qxc6 {[%clk 0:00:48.9]} 23... h4 {[%clk 0:00:43]}
24. R1b5 {[%clk 0:00:19.8]} 24... hxg3 {[%clk 0:00:39.2]} 25. fxg3 {[%clk
0:00:19.8]} 25... Bd7 {[%clk 0:00:28.9]} 26. Qc7 {[%clk 0:00:20]} 26... Bf6
{[%clk 0:00:20]} 27. Bxd6 {[%clk 0:00:19.3]} 27... Qe6 {[%clk 0:00:20]} 28. Nf2
{[%clk 0:00:07.2]} 28... Bxb5 {[%clk 0:00:17.6]} 29. Rxb5 {[%clk 0:00:07.9]}
29... Qxd6 {[%clk 0:00:17.4]} 30. Qxd6 {[%clk 0:00:06.9]} 30... Rxd6 {[%clk
0:00:18.3]} 31. Nf4 {[%clk 0:00:07.4]} 31... Rdd8 {[%clk 0:00:15]} 32. Nd5
{[%clk 0:00:07.8]} 32... Bg7 {[%clk 0:00:15.2]} 33. Rb7 {[%clk 0:00:06.5]} 33...
Rb8 {[%clk 0:00:14]} 34. a6 {[%clk 0:00:07]} 34... Rxb7 {[%clk 0:00:13.6]} 35.
axb7 {[%clk 0:00:07.7]} 35... Rb8 {[%clk 0:00:14.1]} 36. Nxe4 {[%clk 0:00:07.5]}
36... Rxb7 {[%clk 0:00:12.9]} 37. Bxf3 {[%clk 0:00:07.1]} 37... Nxf3 {[%clk
0:00:12.4]} 38. c5 {[%clk 0:00:07.9]} 38... a5 {[%clk 0:00:08.8]} 39. c6 {[%clk
0:00:07.4]} 39... Rb1+ {[%clk 0:00:09.4]} 40. Kg2 {[%clk 0:00:07.7]} 40... Ne1+
{[%clk 0:00:09.6]} 41. Kh3 {[%clk 0:00:08.4]} 41... Rc1 {[%clk 0:00:06.7]} 42.
Nc5 {[%clk 0:00:08.7]} 42... Nf3 {[%clk 0:00:02.3]} 43. c7 {[%clk 0:00:08.1]}
43... Ng5+ {[%clk 0:00:03]} 44. Kg2 {[%clk 0:00:08.1]} 44... Rc2+ {[%clk
0:00:02.6]} 45. Kf1 {[%clk 0:00:08.7]} 45... Rxc5 {[%clk 0:00:02.7]} 46. dxc5
{[%clk 0:00:08.9]} 1-0

[Event "Early-Titled-Tuesday-Blitz-April-02-2024"]
[Site "Chess.com"]
[Date "2024.04.02"]
[Round "9"]
[White "NikitaShnadrygin"]
[Black "SharapovEvgeny"]
[Result "0-1"]
[WhiteElo "2665"]
[BlackElo "2573"]
[TimeControl "180+1"]
[EndTime "9:45:42 PDT"]
[Termination "SharapovEvgeny won on time"]

1. e4 {[%clk 0:02:59.8]} 1... c6 {[%clk 0:02:59.3]} 2. d4 {[%clk 0:02:59.8]}
2... d5 {[%clk 0:02:59.1]} 3. f3 {[%clk 0:03:00.5]} 3... e6 {[%clk 0:02:58.1]}
4. Nc3 {[%clk 0:02:59.8]} 4... Bb4 {[%clk 0:02:57.3]} 5. Bf4 {[%clk 0:02:59.8]}
5... Ne7 {[%clk 0:02:57]} 6. Bd3 {[%clk 0:02:51.5]} 6... O-O {[%clk 0:02:55.8]}
7. Ne2 {[%clk 0:02:51.5]} 7... c5 {[%clk 0:02:54.8]} 8. dxc5 {[%clk 0:02:30]}
8... d4 {[%clk 0:02:51.4]} 9. a3 {[%clk 0:02:28.2]} 9... Ba5 {[%clk 0:02:41.7]}
10. b4 {[%clk 0:02:28.2]} 10... dxc3 {[%clk 0:02:40.7]} 11. bxa5 {[%clk
0:02:28.6]} 11... Qxa5 {[%clk 0:02:38.9]} 12. Bd6 {[%clk 0:02:25.2]} 12... Nbc6
{[%clk 0:02:34.5]} 13. Qc1 {[%clk 0:01:53.9]} 13... b6 {[%clk 0:02:29.8]} 14.
Qe3 {[%clk 0:01:45]} 14... bxc5 {[%clk 0:02:26.8]} 15. Qxc5 {[%clk 0:01:43.1]}
15... Qxc5 {[%clk 0:02:20.8]} 16. Bxc5 {[%clk 0:01:43.2]} 16... Rd8 {[%clk
0:02:18.1]} 17. Nxc3 {[%clk 0:01:41.9]} 17... Ng6 {[%clk 0:02:18.1]} 18. Kf2
{[%clk 0:01:32.5]} 18... Nf4 {[%clk 0:02:16.2]} 19. Rhd1 {[%clk 0:01:31.5]}
19... Nxd3+ {[%clk 0:02:15.7]} 20. cxd3 {[%clk 0:01:19.7]} 20... Ba6 {[%clk
0:02:14]} 21. d4 {[%clk 0:01:20]} 21... Rac8 {[%clk 0:02:13.9]} 22. Rac1 {[%clk
0:01:08.6]} 22... Na5 {[%clk 0:02:03.8]} 23. Rb1 {[%clk 0:00:35.3]} 23... Nb7
{[%clk 0:01:58.1]} 24. Bb4 {[%clk 0:00:31.3]} 24... Rd7 {[%clk 0:01:54.6]} 25.
d5 {[%clk 0:00:29.6]} 25... e5 {[%clk 0:01:52.1]} 26. Rbc1 {[%clk 0:00:25.7]}
26... f5 {[%clk 0:01:50.4]} 27. Ne2 {[%clk 0:00:21.4]} 27... Rxc1 {[%clk
0:01:47.6]} 28. Rxc1 {[%clk 0:00:22.3]} 28... fxe4 {[%clk 0:01:48]} 29. fxe4
{[%clk 0:00:22.5]} 29... Bd3 {[%clk 0:01:44.4]} 30. Ke3 {[%clk 0:00:21.5]} 30...
Bb5 {[%clk 0:01:39.7]} 31. Rc8+ {[%clk 0:00:19.3]} 31... Kf7 {[%clk 0:01:39.2]}
32. Nc3 {[%clk 0:00:19.5]} 32... Ba6 {[%clk 0:01:34.5]} 33. Rc6 {[%clk
0:00:18.6]} 33... Bf1 {[%clk 0:01:33.2]} 34. a4 {[%clk 0:00:13.5]} 34... a5
{[%clk 0:01:29.6]} 35. Ba3 {[%clk 0:00:13.1]} 35... Bxg2 {[%clk 0:01:26.8]} 36.
Nb5 {[%clk 0:00:11.9]} 36... h5 {[%clk 0:01:06.6]} 37. Rb6 {[%clk 0:00:12.1]}
37... Kg8 {[%clk 0:01:03.5]} 38. Bb2 {[%clk 0:00:12]} 38... Nc5 {[%clk
0:01:00.4]} 39. Bxe5 {[%clk 0:00:08.6]} 39... Nxe4 {[%clk 0:00:56]} 40. d6
{[%clk 0:00:07.6]} 40... Ng5 {[%clk 0:00:49.1]} 41. Nd4 {[%clk 0:00:06.7]} 41...
Nf7 {[%clk 0:00:45.6]} 42. Bg3 {[%clk 0:00:05.3]} 42... g5 {[%clk 0:00:45.5]}
43. Nb5 {[%clk 0:00:02.5]} 43... h4 {[%clk 0:00:44.7]} 44. Bf2 {[%clk
0:00:03.2]} 44... Bf1 {[%clk 0:00:42.9]} 45. Rb8+ {[%clk 0:00:02.8]} 45... Kh7
{[%clk 0:00:41.4]} 46. Be1 {[%clk 0:00:03.5]} 46... Bxb5 {[%clk 0:00:39.4]} 47.
axb5 {[%clk 0:00:04.4]} 47... Nxd6 {[%clk 0:00:38.9]} 48. Kf3 {[%clk 0:00:03.6]}
48... Rb7 {[%clk 0:00:37.2]} 49. Rd8 {[%clk 0:00:02.7]} 49... Nxb5 {[%clk
0:00:35.2]} 50. Kg4 {[%clk 0:00:03.3]} 50... a4 {[%clk 0:00:33.3]} 51. Kxg5
{[%clk 0:00:02.9]} 51... a3 {[%clk 0:00:33.5]} 52. Bf2 {[%clk 0:00:01.4]} 52...
a2 {[%clk 0:00:32.9]} 53. Rd1 {[%clk 0:00:02.1]} 53... Nc3 {[%clk 0:00:31.2]}
0-1

[Event "Early-Titled-Tuesday-Blitz-April-02-2024"]
[Site "Chess.com"]
[Date "2024.04.02"]
[Round "9"]
[White "lamomiajunior"]
[Black "DvaHrasta"]
[Result "1-0"]
[WhiteElo "2707"]
[BlackElo "2539"]
[TimeControl "180+1"]
[EndTime "9:45:43 PDT"]
[Termination "lamomiajunior won on time"]

1. d4 {[%clk 0:03:00.9]} 1... Nf6 {[%clk 0:02:58.5]} 2. Nc3 {[%clk 0:03:01.6]}
2... d5 {[%clk 0:02:58]} 3. Bf4 {[%clk 0:03:02.3]} 3... e6 {[%clk 0:02:57.3]} 4.
Nb5 {[%clk 0:03:02]} 4... Bd6 {[%clk 0:02:57.5]} 5. Nxd6+ {[%clk 0:03:02.6]}
5... cxd6 {[%clk 0:02:58.3]} 6. e3 {[%clk 0:03:03.5]} 6... O-O {[%clk
0:02:57.9]} 7. Nf3 {[%clk 0:03:04.2]} 7... Nc6 {[%clk 0:02:58.2]} 8. h3 {[%clk
0:03:04.5]} 8... Re8 {[%clk 0:02:58.5]} 9. c3 {[%clk 0:03:05.1]} 9... e5 {[%clk
0:02:58.7]} 10. Bh2 {[%clk 0:03:05.1]} 10... Bf5 {[%clk 0:02:56.8]} 11. Be2
{[%clk 0:03:05.2]} 11... a5 {[%clk 0:02:55.4]} 12. O-O {[%clk 0:03:05.5]} 12...
a4 {[%clk 0:02:55.6]} 13. Rc1 {[%clk 0:03:04.1]} 13... Qb6 {[%clk 0:02:52.9]}
14. b3 {[%clk 0:02:55.8]} 14... axb3 {[%clk 0:02:51.8]} 15. Qxb3 {[%clk
0:02:55.7]} 15... Qxb3 {[%clk 0:02:45.9]} 16. axb3 {[%clk 0:02:56.6]} 16... Ra2
{[%clk 0:02:45.2]} 17. Bb5 {[%clk 0:02:55.9]} 17... Bc2 {[%clk 0:02:16.9]} 18.
dxe5 {[%clk 0:02:51.9]} 18... dxe5 {[%clk 0:02:09.6]} 19. Nxe5 {[%clk
0:02:32.2]} 19... Ne4 {[%clk 0:01:52.6]} 20. Nxc6 {[%clk 0:02:29.2]} 20... bxc6
{[%clk 0:01:52.4]} 21. Bxc6 {[%clk 0:02:30.1]} 21... Rd8 {[%clk 0:01:48.4]} 22.
Be5 {[%clk 0:02:17.1]} 22... Nd2 {[%clk 0:01:36.2]} 23. Ra1 {[%clk 0:02:16.9]}
23... Bxb3 {[%clk 0:01:23.6]} 24. Rxa2 {[%clk 0:02:15.2]} 24... Bxa2 {[%clk
0:01:23.4]} 25. Ra1 {[%clk 0:02:13.7]} 25... Bc4 {[%clk 0:01:19.4]} 26. Bc7
{[%clk 0:02:11.7]} 26... Rc8 {[%clk 0:01:11]} 27. Bd7 {[%clk 0:02:06.5]} 27...
Rf8 {[%clk 0:01:09.4]} 28. Ra7 {[%clk 0:02:04.8]} 28... Ne4 {[%clk 0:01:03.3]}
29. Ba5 {[%clk 0:01:56.4]} 29... g6 {[%clk 0:00:53.8]} 30. Bc6 {[%clk
0:01:44.5]} 30... Rb8 {[%clk 0:00:50.6]} 31. Bb4 {[%clk 0:01:38.1]} 31... Rc8
{[%clk 0:00:42]} 32. Bd7 {[%clk 0:01:35.3]} 32... Rb8 {[%clk 0:00:39.1]} 33. Ba4
{[%clk 0:01:33.4]} 33... Rc8 {[%clk 0:00:35.8]} 34. f3 {[%clk 0:01:32.9]} 34...
Ng5 {[%clk 0:00:29.1]} 35. Bd7 {[%clk 0:01:31.3]} 35... Rb8 {[%clk 0:00:28.3]}
36. Bd6 {[%clk 0:01:29]} 36... Rb1+ {[%clk 0:00:26.5]} 37. Kh2 {[%clk
0:01:28.9]} 37... Rb2 {[%clk 0:00:24.7]} 38. Ra8+ {[%clk 0:00:43.7]} 38... Kg7
{[%clk 0:00:24.1]} 39. Kg3 {[%clk 0:00:32.3]} 39... Bf1 {[%clk 0:00:23.2]} 40.
Kf4 {[%clk 0:00:32.4]} 40... Rxg2 {[%clk 0:00:20.6]} 41. h4 {[%clk 0:00:28.4]}
41... Ne6+ {[%clk 0:00:18.4]} 42. Bxe6 {[%clk 0:00:28.6]} 42... fxe6 {[%clk
0:00:18.1]} 43. Ra7+ {[%clk 0:00:28.9]} 43... Kg8 {[%clk 0:00:16.8]} 44. Ke5
{[%clk 0:00:28.4]} 44... Be2 {[%clk 0:00:14.5]} 45. f4 {[%clk 0:00:27.7]} 45...
g5 {[%clk 0:00:11]} 46. hxg5 {[%clk 0:00:27.5]} 46... h6 {[%clk 0:00:08.5]} 47.
Kf6 {[%clk 0:00:27.2]} 47... hxg5 {[%clk 0:00:08.2]} 48. fxg5 {[%clk 0:00:24.6]}
48... Rf2+ {[%clk 0:00:07.1]} 49. Kxe6 {[%clk 0:00:24.9]} 49... Bd3 {[%clk
0:00:04.3]} 50. Kxd5 {[%clk 0:00:22.6]} 50... Rf5+ {[%clk 0:00:03.1]} 51. Kd4
{[%clk 0:00:22.2]} 1-0

[Event "Early-Titled-Tuesday-Blitz-April-02-2024"]
[Site "Chess.com"]
[Date "2024.04.02"]
[Round "9"]
[White "Lukianoo"]
[Black "wonderfultime"]
[Result "0-1"]
[WhiteElo "2836"]
[BlackElo "2995"]
[TimeControl "180+1"]
[EndTime "9:45:46 PDT"]
[Termination "wonderfultime won on time"]

1. e4 {[%clk 0:02:57]} 1... e5 {[%clk 0:02:59.7]} 2. d4 {[%clk 0:02:56.7]} 2...
exd4 {[%clk 0:02:59.5]} 3. Qxd4 {[%clk 0:02:57.6]} 3... Nc6 {[%clk 0:02:59.3]}
4. Qe3 {[%clk 0:02:58.1]} 4... Nf6 {[%clk 0:02:54.9]} 5. Nc3 {[%clk 0:02:58.2]}
5... Bb4 {[%clk 0:02:54.6]} 6. Bd2 {[%clk 0:02:56.6]} 6... O-O {[%clk
0:02:54.6]} 7. O-O-O {[%clk 0:02:56.8]} 7... Re8 {[%clk 0:02:53.4]} 8. Bc4
{[%clk 0:02:54.3]} 8... d6 {[%clk 0:02:47.2]} 9. f3 {[%clk 0:02:54.4]} 9... Be6
{[%clk 0:02:42]} 10. Bxe6 {[%clk 0:02:54.4]} 10... fxe6 {[%clk 0:02:42.7]} 11.
Nge2 {[%clk 0:02:50.2]} 11... Nd7 {[%clk 0:02:34.6]} 12. Qf2 {[%clk 0:02:38.4]}
12... Nde5 {[%clk 0:02:21.4]} 13. Kb1 {[%clk 0:02:30.7]} 13... Qf6 {[%clk
0:02:16.2]} 14. a3 {[%clk 0:01:55.5]} 14... Bc5 {[%clk 0:02:13.4]} 15. Qg3
{[%clk 0:01:54.5]} 15... Nc4 {[%clk 0:02:02.6]} 16. Bg5 {[%clk 0:01:53.6]} 16...
Qf7 {[%clk 0:02:01.9]} 17. h4 {[%clk 0:01:47.7]} 17... b5 {[%clk 0:02:00.3]} 18.
Na2 {[%clk 0:01:42.4]} 18... Reb8 {[%clk 0:01:50.4]} 19. h5 {[%clk 0:01:28.4]}
19... b4 {[%clk 0:01:46.8]} 20. axb4 {[%clk 0:01:01.2]} 20... Nxb4 {[%clk
0:01:46.7]} 21. Bc1 {[%clk 0:00:51.6]} 21... e5 {[%clk 0:01:22.6]} 22. b3 {[%clk
0:00:27.7]} 22... Nxa2 {[%clk 0:00:54.5]} 23. Kxa2 {[%clk 0:00:27.1]} 23... Na5
{[%clk 0:00:48.7]} 24. Rd3 {[%clk 0:00:26.5]} 24... Nc6 {[%clk 0:00:49.4]} 25.
Bd2 {[%clk 0:00:23.8]} 25... a5 {[%clk 0:00:50]} 26. Kb2 {[%clk 0:00:20.5]}
26... a4 {[%clk 0:00:50.4]} 27. Ra1 {[%clk 0:00:20]} 27... Qxh5 {[%clk
0:00:46.9]} 28. Qh3 {[%clk 0:00:11.2]} 28... Qf7 {[%clk 0:00:45.3]} 29. Qf5
{[%clk 0:00:11.3]} 29... axb3 {[%clk 0:00:34.4]} 30. Qxf7+ {[%clk 0:00:10.4]}
30... Kxf7 {[%clk 0:00:34.2]} 31. Rxa8 {[%clk 0:00:10.5]} 31... Rxa8 {[%clk
0:00:34.3]} 32. cxb3 {[%clk 0:00:10]} 32... Ke6 {[%clk 0:00:28.7]} 33. Bc3
{[%clk 0:00:09.6]} 33... h5 {[%clk 0:00:27.5]} 34. Rd1 {[%clk 0:00:09.6]} 34...
g6 {[%clk 0:00:18.4]} 35. Rh1 {[%clk 0:00:05.7]} 35... Be3 {[%clk 0:00:18.1]}
36. Rd1 {[%clk 0:00:05.1]} 36... Rb8 {[%clk 0:00:17.9]} 37. Kc2 {[%clk
0:00:04.9]} 37... Na7 {[%clk 0:00:15]} 38. Ra1 {[%clk 0:00:04.6]} 38... Nb5
{[%clk 0:00:15.1]} 39. Bb2 {[%clk 0:00:04.9]} 39... h4 {[%clk 0:00:14]} 40. Rh1
{[%clk 0:00:03.3]} 40... Bf2 {[%clk 0:00:13.3]} 41. Ra1 {[%clk 0:00:02.5]} 41...
g5 {[%clk 0:00:12.4]} 42. Bc1 {[%clk 0:00:02.5]} 42... Rg8 {[%clk 0:00:12.4]}
43. Ra5 {[%clk 0:00:02.4]} 43... c6 {[%clk 0:00:12.5]} 44. Ra6 {[%clk
0:00:02.3]} 44... g4 {[%clk 0:00:13.2]} 45. fxg4 {[%clk 0:00:01.4]} 45... Rxg4
{[%clk 0:00:14.1]} 46. Rxc6 {[%clk 0:00:01.6]} 46... Rxg2 {[%clk 0:00:14.5]} 0-1

[Event "Early-Titled-Tuesday-Blitz-April-02-2024"]
[Site "Chess.com"]
[Date "2024.04.02"]
[Round "9"]
[White "Witik"]
[Black "DenLaz"]
[Result "0-1"]
[WhiteElo "2800"]
[BlackElo "3100"]
[TimeControl "180+1"]
[EndTime "9:45:46 PDT"]
[Termination "DenLaz won on time"]

1. d4 {[%clk 0:02:59.5]} 1... f5 {[%clk 0:03:00.7]} 2. g3 {[%clk 0:02:58.6]}
2... Nf6 {[%clk 0:03:01.2]} 3. Bg2 {[%clk 0:02:59.3]} 3... g6 {[%clk 0:03:01.8]}
4. Nd2 {[%clk 0:02:59.2]} 4... Nc6 {[%clk 0:02:59.1]} 5. d5 {[%clk 0:02:53.1]}
5... Ne5 {[%clk 0:02:59.2]} 6. Ndf3 {[%clk 0:02:38.3]} 6... Nf7 {[%clk
0:02:54.7]} 7. Nh3 {[%clk 0:02:34]} 7... c6 {[%clk 0:02:53.1]} 8. Nf4 {[%clk
0:02:25.6]} 8... cxd5 {[%clk 0:02:44.4]} 9. Nxd5 {[%clk 0:02:23.9]} 9... Qa5+
{[%clk 0:02:38.8]} 10. Nc3 {[%clk 0:02:24.2]} 10... Bg7 {[%clk 0:02:39.4]} 11.
O-O {[%clk 0:02:23.9]} 11... O-O {[%clk 0:02:40.1]} 12. Nd4 {[%clk 0:02:19.1]}
12... d6 {[%clk 0:02:36.6]} 13. Nb3 {[%clk 0:02:08.4]} 13... Qd8 {[%clk
0:02:36.1]} 14. a4 {[%clk 0:02:02.4]} 14... Rb8 {[%clk 0:02:25.5]} 15. a5 {[%clk
0:02:02.5]} 15... b6 {[%clk 0:02:24.9]} 16. axb6 {[%clk 0:01:58]} 16... axb6
{[%clk 0:02:24.6]} 17. Nd4 {[%clk 0:01:56.7]} 17... Bb7 {[%clk 0:02:23.9]} 18.
Ne6 {[%clk 0:01:50.2]} 18... Qd7 {[%clk 0:02:21.2]} 19. Nxf8 {[%clk 0:01:50.5]}
19... Bxf8 {[%clk 0:02:17.8]} 20. Ra7 {[%clk 0:01:50.4]} 20... Qc8 {[%clk
0:02:07.4]} 21. Nd5 {[%clk 0:01:33.5]} 21... Bxd5 {[%clk 0:01:41.7]} 22. Bxd5
{[%clk 0:01:33.2]} 22... e6 {[%clk 0:01:42.4]} 23. Bg2 {[%clk 0:01:29]} 23... d5
{[%clk 0:01:41.8]} 24. b3 {[%clk 0:01:21.3]} 24... Bc5 {[%clk 0:01:23.1]} 25. c4
{[%clk 0:01:14.2]} 25... b5 {[%clk 0:01:19.5]} 26. Rxf7 {[%clk 0:01:11.6]} 26...
Kxf7 {[%clk 0:01:18.4]} 27. cxd5 {[%clk 0:01:12.3]} 27... exd5 {[%clk
0:01:10.7]} 28. Bf4 {[%clk 0:01:08.5]} 28... Rb6 {[%clk 0:01:04.7]} 29. Bxd5+
{[%clk 0:01:01.2]} 29... Kg7 {[%clk 0:01:03.2]} 30. Bf3 {[%clk 0:00:56.6]} 30...
Qe6 {[%clk 0:00:58.9]} 31. Qc1 {[%clk 0:00:49.4]} 31... Be7 {[%clk 0:00:56]} 32.
Rd1 {[%clk 0:00:47.7]} 32... Qxb3 {[%clk 0:00:52]} 33. Rd3 {[%clk 0:00:40.4]}
33... Qb4 {[%clk 0:00:38]} 34. Qc7 {[%clk 0:00:35.4]} 34... Qc5 {[%clk
0:00:33.7]} 35. Qa7 {[%clk 0:00:19.5]} 35... Re6 {[%clk 0:00:32.2]} 36. Qa1
{[%clk 0:00:16.9]} 36... Kf7 {[%clk 0:00:22.4]} 37. Kg2 {[%clk 0:00:16.8]} 37...
Ne4 {[%clk 0:00:20.6]} 38. Be3 {[%clk 0:00:15.3]} 38... Qc4 {[%clk 0:00:20.3]}
39. Qh8 {[%clk 0:00:15.4]} 39... h5 {[%clk 0:00:11]} 40. Qh7+ {[%clk 0:00:12.5]}
40... Ke8 {[%clk 0:00:11.5]} 41. Qg8+ {[%clk 0:00:09.2]} 41... Bf8 {[%clk
0:00:11.9]} 42. Bh6 {[%clk 0:00:07.6]} 42... Rf6 {[%clk 0:00:12.2]} 43. Qh8
{[%clk 0:00:03.6]} 43... Qf7 {[%clk 0:00:11.1]} 44. Bxe4 {[%clk 0:00:03.2]}
44... fxe4 {[%clk 0:00:11.3]} 45. Rd4 {[%clk 0:00:02.6]} 45... Rxf2+ {[%clk
0:00:11.9]} 46. Kh3 {[%clk 0:00:03.2]} 46... Qf5+ {[%clk 0:00:12]} 0-1